Cogmind - Beta 11 @@@ ROGUE MODE // 2022.03.17 @ 21:58:14 Player: Eskild Result: Destroyed by Y-45 Defender with Beam Rifle Performance ------------- Evolutions (1) 500 Regions Visited (2) 400 Robots Destroyed (14) 70 Value Destroyed (402) 402 Prototype IDs (2) 40 Alien Tech Used (0) 0 Bonus (0) 0 TOTAL SCORE: 1412 Bonus ------- None Cogmind --------- Core Integrity 0/400 Matter 300/300 Energy 100/100 System Corruption 0% Temperature Cool (39) Movement Core (350) Ox6 Location -9/Materials Parts ------- > --- POWER (2) -------- (None) > --- PROPULSION (2) --- (None) > --- UTILITY (3) ------ Large Storage Unit Hacking Suite > --- WEAPON (2) ------- (None) > --- INVENTORY (15) --- Ion Engine Ion Engine Improved Ion Engine Compact Wheel Compact Wheel Sensor Array Peak State ------------ > --- POWER ------------ Improved Ion Engine Improved Ion Engine > --- PROPULSION ------- Aluminum Leg Aluminum Leg > --- UTILITY ---------- Large Storage Unit Sensor Array Hacking Suite > --- WEAPON ----------- Small Laser Light Cannon > --- INVENTORY -------- Ion Engine Ion Engine Improved Ion Engine Compact Wheel Compact Wheel Sensor Array Datajack [Rating: 13] Favorites ----------- Power Improved Ion Engine Engine Improved Ion Engine Propulsion Aluminum Leg Leg Aluminum Leg Utility Hacking Suite Device Sensor Array Storage Large Storage Unit Hackware Hacking Suite Weapon Small Laser Energy Gun Small Laser Ballistic Gun Assault Rifle Ballistic Cannon Light Cannon Special Melee Weapon Datajack Build | -11 -10 -9 ------- Run | Scr Mat Mat Slots Evolved 2 | . . 2 Power 1 | . . 1 Propulsion . | . . . Utility 1 | . . 1 Weapon . | . . . Parts Attached 15 | 6 5 4 Power 4 | 1 1 2 Engine 4 | 1 1 2 Core . | . . . Reactor . | . . . Propulsion 2 | 2 . . Treads . | . . . Leg 2 | 2 . . Wheel . | . . . Hover . | . . . Flight . | . . . Utility 4 | 1 2 1 Device 1 | . . 1 Storage 2 | 1 1 . Processor . | . . . Hackware 1 | . 1 . Protection . | . . . Artifact . | . . . Weapon 5 | 2 2 1 Energy Gun 2 | 1 1 . Energy Cannon . | . . . Ballistic Gun 1 | 1 . . Ballistic Cannon 1 | . 1 . Launcher . | . . . Special Weapon . | . . . Impact Weapon . | . . . Slashing Weapon . | . . . Piercing Weapon . | . . . Special Melee Weapon 1 | . . 1 Unidentified Prototypes . | . . . Parts Lost 8 | . . 8 Power 2 | . . 2 Propulsion 2 | . . 2 Utility 1 | . . 1 Weapon 3 | . . 3 Highest Loss Streak 8 | . . 8 To Critical Strikes . | . . . Average Slot Usage (%) 93 | . 98 86 Engine 15 | . 14 18 Leg 24 | . 28 17 Device 2 | . . 8 Storage 12 | . 14 11 Hackware 11 | . 12 11 Energy Gun 12 | . 14 9 Ballistic Gun 5 | . 9 . Ballistic Cannon 6 | . 4 8 Naked Turns . | . . . Heaviest Build 39 | 13 31 39 Greatest Support 20 | 20 20 20 Greatest Overweight (x) 11 | . 1 11 Average Overweight (x) . | . . 1 Largest Inventory Capacity 15 | 8 15 15 Average Capacity 13 | 6 13 15 Most Carried 11 | 4 11 8 Average Carried 7 | 1 8 6 Final Capacity 15 | 8 15 15 Final Carried 9 | 3 9 6 Class Distribution -------------------- 100% | Mutant Dominant Class ---------------- Mutant | -10/Materials Mutant | -9/Materials Resources | -11 -10 -9 ----------- Run | Scr Mat Mat Matter Collected 451 | 215 154 82 Remotely . | . . . Salvage Created 411 | . 294 117 Parts 32 | . 23 9 Haulers Intercepted . | . . . Recyclers Shooed . | . . . Parts Field Recycled . | . . . Retrieved Matter . | . . . Parts Self-Destructed . | . . . Prevented . | . . . Kills | -11 -10 -9 ------- Run | Scr Mat Mat Combat Hostiles Destroyed 12 | . 7 5 Guns 9 | . 6 3 Cannons 3 | . 1 2 Classes Destroyed 4 | . 3 1 Operator 1 | . 1 . Watcher 1 | . 1 . Swarmer 2 | . . 2 Grunt 10 | . 7 3 Best Kill Streak 6 | . 6 3 Combat Bots Only 6 | . 6 3 Max Kills in Single Turn 1 | . 1 1 Gunslinging . | . . . Exploded . | . . . Melee . | . . . Uniques/NPCs Destroyed . | . . . Combat | -11 -10 -9 -------- Run | Scr Mat Mat Damage Taken 1344 | . 342 1002 Core 470 | . 63 407 Absorbed by Shields . | . . . Core Remaining (%) 87 | 100 74 . Volleys Fired 43 | . 23 20 Largest 2 | . 2 2 Hottest 75 | . 75 75 Shots Fired 81 | . 46 35 Gun 62 | . 44 18 Cannon 19 | . 2 17 Launcher . | . . . Special . | . . . Kinetic 40 | . 23 17 Thermal 41 | . 23 18 Explosive . | . . . Electromagnetic . | . . . Robot Hit Streak 11 | . 11 7 Robot Miss Streak 5 | . 3 5 Penetration Max . | . . . Secondary Targets 1 | . 1 . Max Gunslinging Chain 1 | . 1 . Shots Hit Robots 52 | . 32 20 Core Hits 25 | . 16 9 Critical Kills 1 | . 1 . Critical Parts Destroyed 1 | . 1 . Critical Strikes 3 | . 2 1 Destroy 2 | . 2 . Blast 1 | . . 1 Melee Attacks 2 | . . 2 Impact . | . . . Slashing . | . . . Piercing . | . . . Sneak Attacks 1 | . . 1 Combat Hostiles . | . . . Follow-up Attacks . | . . . Damage Inflicted 698 | . 401 297 Guns 478 | . 380 98 Cannons 216 | . 20 196 Explosions . | . . . Melee . | . . . Ramming 4 | . 1 3 Kinetic 438 | . 242 196 Thermal 256 | . 158 98 Explosive . | . . . Electromagnetic . | . . . Impact . | . . . Slashing . | . . . Piercing . | . . . Highest Corruption . | . . . Average Corruption . | . . . Corruption Purged . | . . . Corruption Blocked . | . . . Overload Shots . | . . . Overflow Damage 10 | . . 10 Projectiles 10 | . . 10 Explosions . | . . . Melee . | . . . Knockbacks 2 | . . 2 Impact . | . . . Kinetic 2 | . . 2 Secondary . | . . . Self-Inflicted Damage . | . . . Shots . | . . . Rammed 2 | . . 2 Targets Rammed 5 | . 1 4 Kicked 3 | . 1 2 Crushed . | . . . Highest Temperature 191 | . 64 191 Average Temperature 56 | . 21 87 Received Heat Transfer 384 | . 186 198 Siege Activations . | . . . Robots Corrupted . | . . . Combat Hostiles . | . . . Parts Fried . | . . . Impact Corruptions . | . . . Robots Melted . | . . . Combat Hostiles . | . . . Parts Melted 1 | . . 1 Heat Transferred 575 | . 350 225 Parts Sabotaged . | . . . Parts Stolen . | . . . Parts Stripped . | . . . Power Chain Reactions . | . . . Missiles Intercepted . | . . . Alert | -11 -10 -9 ------- Run | Scr Mat Mat Peak Influence 174 | . 174 157 Initial 44 | . . 44 Average 67 | . 66 89 Maximum Alert Level . | . . . Low Security (%) 100 | 100 100 100 Level 1 . | . . . Level 2 . | . . . Level 3 . | . . . Level 4 . | . . . Level 5 . | . . . High Security . | . . . Max Security . | . . . Squads Dispatched 5 | . 4 1 Investigation 3 | . 3 . Extermination . | . . . Reinforcement 2 | . 1 1 Assault . | . . . Garrison . | . . . Intercept . | . . . Searches Triggered . | . . . Construction Impeded . | . . . Haulers Reinforced . | . . . Active Scanning Responses . | . . . Cargo Convoy Interrupts . | . . . Stealth | -11 -10 -9 --------- Run | Scr Mat Mat Distress Signals 3 | . 1 2 Communications Jammed . | . . . Distress Signals . | . . . Times Spotted 24 | . 12 12 Peak Tracking Total 6 | . 4 6 Tactical Retreats . | . . . Traps | -11 -10 -9 ------- Run | Scr Mat Mat Traps Triggered 1 | . 1 . Indirectly . | . . . Trap Hack Attempts . | . . . Triggered . | . . . Disarmed . | . . . Reprogrammed . | . . . Reused . | . . . Traps Extracted . | . . . Installed . | . . . Triggered . | . . . Machines | -11 -10 -9 ---------- Run | Scr Mat Mat Machines Disabled 1 | . . 1 Max in Single Turn 1 | . . 1 Machines Sabotaged . | . . . Garrisons Compromised . | . . . Overloaded Fab Kills . | . . . Hacking | -11 -10 -9 --------- Run | Scr Mat Mat Machines Accessed 4 | . 4 . Terminals 4 | . 4 . Fabricators . | . . . Repair Stations . | . . . Recycling Units . | . . . Scanalyzers . | . . . Garrison Access . | . . . Total Hacks 20 | . 20 . Successful 13 | . 13 . Failed 7 | . 7 . Catastrophic . | . . . Database Lockouts . | . . . Manual . | . . . Terminals 20 | . 20 . Fabricators . | . . . Repair Stations . | . . . Recycling Units . | . . . Scanalyzers . | . . . Garrison Access . | . . . Terminal Hacks 13 | . 13 . Prototype ID Bank 1 | . 1 . Branch Access Points 1 | . 1 . Alert Level 3 | . 3 . Unreport Threat 1 | . 1 . Locate Traps 1 | . 1 . Dispatch Records 1 | . 1 . Investigation Status 1 | . 1 . Recall Investigation 1 | . 1 . Hauler Manifests 2 | . 2 . Zone Layout 1 | . 1 . Fabricator Hacks . | . . . Repair Station Hacks . | . . . Recycling Unit Hacks . | . . . Scanalyzer . | . . . Garrison Access Hacks . | . . . Unauthorized Hacks . | . . . Terminals . | . . . Fabricators . | . . . Repair Stations . | . . . Recycling Units . | . . . Scanalyzers . | . . . Garrison Access . | . . . Data Cores Recovered . | . . . Used . | . . . Hacking Detections 3 | . 3 . Full Trace Events 2 | . 2 . Feedback Events . | . . . Feedback Blocked . | . . . Robot Schematics Acquired . | . . . Robots Built . | . . . Authchips . | . . . Time . | . . . Total Robot Build Rating . | . . . Part Schematics Acquired . | . . . Parts Built . | . . . Authchips . | . . . Time . | . . . Total Part Build Rating . | . . . Parts Repaired . | . . . Time . | . . . Parts Recycled . | . . . Recycled Matter . | . . . Retrieved Matter . | . . . Retrieved Components . | . . . Parts Scanalyzed . | . . . Part Schematics Acquired . | . . . Parts Damaged . | . . . Bothacking | -11 -10 -9 ------------ Run | Scr Mat Mat Used RIF Installer . | . . . Robots Hacked 2 | . . 2 Non-combat 1 | . . 1 Combat 1 | . . 1 Robot Hacks Applied 2 | . . 2 parse_system 2 | . . 2 Relay Couplers Released . | . . . Fabnet Peak Effective % . | . . . Robots Rewired . | . . . Allies Hacked . | . . . Hacks Repelled . | . . . Allies | -11 -10 -9 -------- Run | Scr Mat Mat Total Allies . | . . . Largest Group . | . . . Highest-Rated Group . | . . . Highest-Rated Ally . | . . . Total Orders . | . . . Ally Attacks . | . . . Total Damage . | . . . Kills . | . . . Allies Corrupted . | . . . Allies Melted . | . . . Intel | -11 -10 -9 ------- Run | Scr Mat Mat Robot Analysis Total . | . . . Derelict Logs Recovered . | . . . Drone Launches . | . . . Drone Recoveries . | . . . Exploration | -11 -10 -9 ------------- Run | Scr Mat Mat Turns Passed 655 | 62 384 209 Spaces Moved 289 | 50 178 61 Core 24 | 18 . 6 Treads . | . . . Legs 265 | 32 178 55 Wheels . | . . . Hover . | . . . Flight . | . . . Fastest Speed 50 | 50 120 190 Average Speed 163 | 94 165 214 Slowest Speed 600 | 120 190 600 Overloaded Moves . | . . . Propulsion Burnouts . | . . . Robots Hopped . | . . . Cave-ins Triggered . | . . . Exploration Rate (%) 16 | 4 37 8 Regions Visited 2 Branch Regions . Pre-discovered Areas . | . . . Known Exits Taken . | . . . Unknown Exits Taken 2 | 1 1 . Scrap Searched . | . . . Spaces Dug . | . . . Terrain Destroyed . | . . . Melee . | . . . Projectile . | . . . AOE . | . . . Terrain Rammed . | . . . Walls Destroyed . | . . . Machines Disabled . | . . . Actions | -11 -10 -9 --------- Run | Scr Mat Mat Total 383 | 64 221 98 Wait 10 | . 3 7 Move 287 | 49 177 61 Hop . | . . . Pick Up 18 | 9 9 . Fast Attach . | . . . Attach 10 | 6 1 3 Detach . | . . . Swap 5 | . 4 1 Drop 3 | . 3 . Fire 43 | . 23 20 Melee 2 | . . 2 Ram 2 | . . 2 Kick 3 | . 1 2 Crush . | . . . Escape Stasis . | . . . Rewire . | . . . Trap . | . . . Miscellaneous . | . . . Route ------- -11/Scrapyard -10/Materials (discovered 3 exits: [*Mat] / Min x2) -9/Materials History --------- Turn | Location | Event 6 | -11/Scrapyard | Discovered new exit (range 16) 63 | -11/Scrapyard | Entered Materials 220 | -10/Materials | Identified exit to Mines 303 | -10/Materials | Build established: Mutant 390 | -10/Materials | Discovered new exit (range 3) 447 | -10/Materials | Entered another Materials area 447 | -9/Materials | Evolved 2 slots: Power x1, Utility x1 642 | -9/Materials | Core integrity fell below 50% 656 | -9/Materials | Destroyed by Y-45 Defender with Beam Rifle Last Messages --------------- Slammed into S-10 Pest. R-06 Scavenger collects Flight Unit. R-06 Scavenger collects Lgt. Ion Engine. Acquired 5 matter. Jacked Y-45 Defender... Right-click on available options for more info. Keyboard players can use Shift-a~z. >>parse_system Reading system data... Sneak attack on O-16 Technician. Jacked O-16 Technician... >>parse_system Reading system data... Datajack destroyed. Slammed into S-10 Pest. Fusion Modulator explodes. S-10 Pest destroyed. O-16 Technician destroyed. S-10 Pest destroyed. Critical hit (Burn: +37). Map ----- +----------------------------------------------------+ | ??????????????????????????????????????????? | | ??????????????????????????????????????????? | | ??????????????????????????????????????????? | | ??????????????????????????????????????????? | | ??????????????????????????????????????????? | | ??????????????????????????????????????????? | | ??????????????????????????????????????????? | | ??????????????????????????????????????????? | | ??????????????????????????????????????????? | | ??????????????????????????????????????????? | | ??????????????????????????????????????????? | | ??????????????????????????????????????????? | | ??????????????????????????????????????????? | | ??????????????????????????????????????????? | | ??????????????????????????????????????????? | | ??????????????????????????????????????????? | | ??????????????????????????????????????????? | | ??????????????????????????????????????????? | | ??????????????????????????????????????????? | | ??????????????????????????????????????????? | | ????????????#?####????????????????????????? | | ??????????### # ?##?????????????????????? | | ?????????##;;;;;;;#;##########????????????? | | ?????????# ;; rr ?????????????? | | ?????????# %= %; #?????????????????? | | ?????????# [ ;@ r #?????????????????? | | ?????????#[ ;; #?????????????????? | | ?????????# Y;; #?????????????????? | | ?????????# ;;; ##?????????????????? | | ?????????# ; # #??????????????????? | | ?????????# ;##a #??????????????????? | | ?????????# ;?? #??????????????????? | | ?????????# #??? #??????????????????? | | ???####### #??? #??????????????????? | | ???# ###+####### #??????????????????? | | ???# % #??????????????????? | | ???# T % #??????????????????? | | ???# #??????????????????? | | ???# ###+###########??????????????????? | | ???## ## #??????????????????? | | ????# ## #??????????????????? | | ????# ## %""""" #??????????????????? | | ????# ##= """"""""" #??????????????????? | | ????# ## """ """ #??????????????????? | | ????# ## #??????????????????? | | ????# ################??????????????????? | | ????# #? #??????????????????????????? | | ????# # """ #??????????????????????????? | | ????# # """ #??????????????????????????? | | ????# + """ #??????????????????????????? | +----------------------------------------------------+ Best States ------------- Heat Dissipation 28 Energy Generation 19 Energy Capacity 430 Matter Stores 300 Matter Capacity 300 Sight Range 16 Robot Scan Range 14 Terrain Scan Density 10 Evasion (%) 55 Offensive Hacking 10 Item Schematics ----------------- None Robot Schematics ------------------ None Fabricated ------------ Nothing Alien Tech Used ----------------- None Achievements -------------- None Challenges ------------ None Game ------ Seed HeartInsulationPrototype Manual? 0 Play Time 00:10:23 Cumulative 9.9 hours Start 2022.03.17 @ 21:50:03 End 2022.03.17 @ 21:58:14 Sessions 1 Manual Loads 0 Difficulty Rogue Special Mode None Game No. 33 Rogue 27 Adventurer 6 Explorer 0 Win Type - Total 0 Types 0/0/0/0/0/0/0/0/0 Lore% 9 Gallery% 15 Achievement% 12 Wizard Run 0 Options --------- ASCII 0 Keyboard 0 Movement Mouse Keybinds 0 Fullscreen 1 Font 18/SmallcapsGlow Map View 76x50 Tactical HUD 0 Map Filters NONE Filters NONE Steam 1 RUN: 68b6860c-4a00-4bde-baaa-7ff9cab26319